Cogmind - Beta 13 @@@ ROGUE MODE // 2024.04.26 @ 11:59:32 Player: sve9 Result: Destroyed by as-43822 with Assembled Maul Performance ------------- Evolutions (0) 0 Regions Visited (2) 400 Robots Destroyed (24) 120 Value Destroyed (462) 462 Prototype IDs (1) 20 Alien Tech Used (0) 0 Bonus (0) 0 TOTAL SCORE: 1002 Bonus ------- None Cogmind --------- Core Integrity 0/250 Matter 239/300 Energy 100/100 System Corruption 4% Temperature Cool (32) Movement Walking (190) Ox1 Location -10/Mines Parts ------- > --- POWER (1) -------- (None) > --- PROPULSION (2) --- Aluminum Leg > --- UTILITY (2) ------ Medium Storage Unit > --- WEAPON (2) ------- Mini Grenade Launcher > --- INVENTORY (10) --- Ion Engine Light Nuclear Core Aluminum Leg Aluminum Leg Aluminum Leg Large Storage Unit Particle Gun Improved Medium Laser Assault Rifle Shotgun Peak State ------------ > --- POWER ------------ Ion Engine > --- PROPULSION ------- Aluminum Leg Aluminum Leg > --- UTILITY ---------- Medium Storage Unit Propulsion Shielding > --- WEAPON ----------- Improved Medium Laser Shotgun > --- INVENTORY -------- Light Nuclear Core Aluminum Leg Aluminum Leg Large Storage Unit Seismic Detector Particle Gun Assault Rifle Mini Grenade Launcher Mini Grenade Launcher [Rating: 11] Favorites ----------- Power Ion Engine Engine Ion Engine Propulsion Aluminum Leg Leg Aluminum Leg Utility Medium Storage Unit Device Seismic Detector Storage Medium Storage Unit Protection Propulsion Shielding Weapon Light Assault Rifle Energy Gun Improved Medium Laser Ballistic Gun Light Assault Rifle Launcher Mini Grenade Launcher Build | -11 -10 -10 ------- Run | Yrd Mat Min Slots Evolved . | . . . Power . | . . . Propulsion . | . . . Utility . | . . . Weapon . | . . . Parts Attached 23 | 7 5 11 Power 4 | 1 1 2 Engine 4 | 1 1 2 Core . | . . . Reactor . | . . . Propulsion 5 | 2 . 3 Treads . | . . . Leg 5 | 2 . 3 Wheel . | . . . Hover . | . . . Flight . | . . . Utility 5 | 2 2 1 Device 2 | 1 . 1 Storage 2 | 1 1 . Processor . | . . . Hackware . | . . . Protection 1 | . 1 . Artifact . | . . . Weapon 9 | 2 2 5 Energy Gun 2 | . 1 1 Energy Cannon . | . . . Ballistic Gun 4 | 2 1 1 Ballistic Cannon . | . . . Launcher 3 | . . 3 Special Weapon . | . . . Impact Weapon . | . . . Slashing Weapon . | . . . Piercing Weapon . | . . . Special Melee Weapon . | . . . Unidentified Prototypes 1 | . 1 . Parts Lost 7 | . 1 6 Power 1 | . . 1 Propulsion 1 | . . 1 Utility 3 | . 1 2 Weapon 2 | . . 2 Highest Loss Streak 4 | . 1 4 To Critical Strikes . | . . . Average Slot Usage (%) 98 | . 99 96 Engine 13 | . 14 13 Leg 27 | . 28 27 Device 2 | . 1 5 Storage 14 | . 14 14 Protection 10 | . 11 7 Energy Gun 4 | . 2 12 Ballistic Gun 22 | . 25 13 Naked Turns . | . . . Heaviest Build 22 | 13 20 22 Greatest Support 20 | 20 20 20 Greatest Overweight (x) 3 | 3 . 1 Average Overweight (x) . | . . . Largest Inventory Capacity 10 | 8 10 10 Average Capacity 9 | 7 9 10 Most Carried 10 | 4 10 10 Average Carried 8 | 2 9 9 Final Capacity 10 | 8 10 10 Final Carried 10 | 4 10 10 Class Distribution -------------------- 100% | Mutant Dominant Class ---------------- Mutant | -10/Materials Mutant | -10/Mines Resources | -11 -10 -10 ----------- Run | Yrd Mat Min Matter Collected 623 | 230 215 178 Remotely . | . . . Salvage Created 671 | 49 340 282 Parts 54 | 7 29 18 Haulers Intercepted 2 | . 2 . Recyclers Shooed 1 | 1 . . Parts Field Recycled . | . . . Retrieved Matter . | . . . Parts Self-Destructed . | . . . Prevented . | . . . Kills | -11 -10 -10 ------- Run | Yrd Mat Min Combat Hostiles Destroyed 25 | . 9 16 Guns 14 | . 9 5 AOE 11 | . . 11 Classes Destroyed 7 | 1 4 2 Worker 1 | . . 1 Tunneler 2 | 2 . . Hauler 2 | . 2 . Watcher 2 | . 2 . Swarmer 9 | . 6 3 Grunt 8 | . 3 5 Assembled 8 | . . 8 Best Kill Streak 8 | 2 4 8 Combat Bots Only 8 | . 3 8 Max Kills in Single Turn 4 | 1 1 4 Gunslinging . | . . . Exploded 4 | . . 4 Melee . | . . . Uniques/NPCs Destroyed . | . . . Combat | -11 -10 -10 -------- Run | Yrd Mat Min Hostile Shots Fired 113 | . 47 66 Missed 28 | . 9 19 Damage Taken 1176 | . 368 808 Core 260 | . 104 156 Absorbed by Shields . | . . . Redirected to Shielding 50 | . 16 34 Core Remaining (%) 100 | 100 . . Volleys Fired 87 | 7 42 38 Largest 2 | 2 2 2 Hottest 79 | 40 43 79 Shots Fired 161 | 14 84 63 Gun 154 | 14 84 56 Cannon . | . . . Launcher 7 | . . 7 Special . | . . . Kinetic 131 | 14 84 33 Thermal 23 | . . 23 Explosive 7 | . . 7 Electromagnetic . | . . . Robot Hit Streak 7 | 5 7 7 Robot Miss Streak 7 | 1 7 5 Penetration Max . | . . . Secondary Targets 2 | . 1 1 Max Gunslinging Chain 1 | . 1 1 Shots Hit Robots 106 | 11 53 42 Core Hits 65 | 5 26 34 Critical Kills 1 | . 1 . Critical Parts Destroyed 3 | . 1 2 Critical Strikes 4 | . 2 2 Destroy 4 | . 2 2 Melee Attacks . | . . . Impact . | . . . Slashing . | . . . Piercing . | . . . Sneak Attacks . | . . . Combat Hostiles . | . . . Follow-up Attacks . | . . . Damage Inflicted 2008 | 91 506 1411 Guns 1197 | 91 505 601 Cannons . | . . . Explosions 810 | . . 810 Melee . | . . . Ramming 1 | . 1 . Kinetic 909 | 91 505 313 Thermal 288 | . . 288 Explosive 810 | . . 810 Electromagnetic . | . . . Impact . | . . . Slashing . | . . . Piercing . | . . . Highest Corruption 4 | . . 4 Average Corruption 4 | . . 4 Corruption Purged . | . . . Corruption Blocked . | . . . Effects 2 | . . 2 Misfires 1 | . . 1 Weapon Failures 1 | . . 1 Overload Shots . | . . . Overflow Damage 33 | . . 33 Projectiles . | . . . Explosions 33 | . . 33 Melee . | . . . Knockbacks . | . . . Impact . | . . . Kinetic . | . . . Secondary . | . . . Self-Inflicted Damage 138 | . . 138 Shots 3 | . . 3 Rammed . | . . . Targets Rammed 1 | . 1 . Kicked 1 | . 1 . Crushed . | . . . Highest Temperature 304 | . 22 304 Average Temperature 100 | . 5 134 Received Heat Transfer 419 | . 99 320 Siege Activations . | . . . Robots Corrupted . | . . . Combat Hostiles . | . . . Parts Fried . | . . . Impact Corruptions . | . . . Robots Melted . | . . . Combat Hostiles . | . . . Parts Melted . | . . . Heat Transferred 629 | . . 629 Parts Sabotaged . | . . . Parts Stolen . | . . . Parts Stripped . | . . . Power Chain Reactions . | . . . Alert | -11 -10 -10 ------- Run | Yrd Mat Min Peak Influence 364 | 10 364 284 Initial 13 | . 6 13 Average 126 | 3 136 149 Maximum Alert Level 1 | . 1 1 Low Security (%) 72 | 100 73 58 Level 1 27 | . 26 41 Level 2 . | . . . Level 3 . | . . . Level 4 . | . . . Level 5 . | . . . High Security . | . . . Max Security . | . . . Squads Dispatched 1 | . 1 . Investigation 1 | . 1 . Extermination . | . . . Reinforcement . | . . . Assault . | . . . Garrison . | . . . Intercept . | . . . Searches Triggered . | . . . Construction Impeded . | . . . Haulers Reinforced . | . . . Active Scanning Responses . | . . . Cargo Convoy Interrupts . | . . . Stealth | -11 -10 -10 --------- Run | Yrd Mat Min Distress Signals 4 | . 4 . Communications Jammed . | . . . Distress Signals . | . . . Times Spotted 44 | . 16 28 Peak Tracking Total 15 | . 5 15 Tactical Retreats 5 | . 2 3 Traps | -11 -10 -10 ------- Run | Yrd Mat Min Traps Triggered 1 | . 1 . Indirectly . | . . . Trap Hack Attempts . | . . . Triggered . | . . . Disarmed . | . . . Reprogrammed . | . . . Reused . | . . . Traps Extracted . | . . . Installed . | . . . Triggered . | . . . Machines | -11 -10 -10 ---------- Run | Yrd Mat Min Machines Disabled 1 | . . 1 Max in Single Turn 1 | . . 1 Machines Repaired . | . . . Machines Dismantled . | . . . Machines Sabotaged . | . . . Overloaded Fab Kills . | . . . Hacking | -11 -10 -10 --------- Run | Yrd Mat Min Machines Accessed 2 | . 2 . Terminals 2 | . 2 . Fabricators . | . . . Repair Stations . | . . . Recycling Units . | . . . Scanalyzers . | . . . Garrison Access . | . . . Total Hacks 7 | . 7 . Successful 3 | . 3 . Failed 4 | . 4 . Catastrophic 2 | . 2 . Database Lockouts . | . . . Manual 2 | . 2 . Terminals 7 | . 7 . Fabricators . | . . . Repair Stations . | . . . Recycling Units . | . . . Scanalyzers . | . . . Garrison Access . | . . . Terminal Hacks 1 | . 1 . Unreport Threat 1 | . 1 . Fabricator Hacks . | . . . Repair Station Hacks . | . . . Recycling Unit Hacks . | . . . Scanalyzer . | . . . Garrison Access Hacks . | . . . Unauthorized Hacks 2 | . 2 . Terminals 2 | . 2 . Botnet 2 | . 2 . Fabricators . | . . . Repair Stations . | . . . Recycling Units . | . . . Scanalyzers . | . . . Garrison Access . | . . . Data Cores Recovered . | . . . Used . | . . . Hacking Detections 2 | . 2 . Full Trace Events . | . . . Feedback Events . | . . . Feedback Blocked . | . . . Robot Schematics Acquired . | . . . Robots Built . | . . . Authchips . | . . . Time . | . . . Total Robot Build Rating . | . . . Part Schematics Acquired . | . . . Parts Built . | . . . Authchips . | . . . Time . | . . . Total Part Build Rating . | . . . Parts Repaired . | . . . Time . | . . . Parts Recycled . | . . . Recycled Matter . | . . . Retrieved Matter . | . . . Retrieved Components . | . . . Parts Scanalyzed . | . . . Part Schematics Acquired . | . . . Parts Damaged . | . . . Bothacking | -11 -10 -10 ------------ Run | Yrd Mat Min Used RIF Installer . | . . . Robots Hacked . | . . . Non-combat . | . . . Combat . | . . . Robot Hacks Applied . | . . . Relay Couplers Released . | . . . Fabnet Peak Effective % . | . . . Robots Rewired . | . . . Allies Hacked . | . . . Hacks Repelled . | . . . Allies | -11 -10 -10 -------- Run | Yrd Mat Min Total Allies . | . . . Largest Group . | . . . Highest-Rated Group . | . . . Highest-Rated Ally . | . . . Total Orders . | . . . Ally Attacks . | . . . Total Damage . | . . . Kills . | . . . Allies Corrupted . | . . . Allies Melted . | . . . Intel | -11 -10 -10 ------- Run | Yrd Mat Min Robot Analysis Total . | . . . Derelict Logs Recovered 1 | . . 1 Drone Launches . | . . . Drone Recoveries . | . . . Exploration | -11 -10 -10 ------------- Run | Yrd Mat Min Turns Passed 1089 | 98 755 236 Spaces Moved 600 | 51 483 66 Core 9 | 9 . . Treads . | . . . Legs 591 | 42 483 66 Wheels . | . . . Hover . | . . . Flight . | . . . Fastest Speed 50 | 50 120 120 Average Speed 125 | 127 120 166 Slowest Speed 200 | 200 120 190 Overloaded Moves . | . . . Propulsion Burnouts . | . . . Robots Hopped . | . . . Cave-ins Triggered . | . . . Exploration Rate (%) 35 | 4 76 26 Regions Visited 2 Branch Regions 1 Pre-discovered Areas . | . . . Known Exits Taken . | . . . Unknown Exits Taken 2 | 1 1 . Scrap Searched 1 | . . 1 Spaces Dug . | . . . Terrain Destroyed 69 | . . 69 Melee . | . . . Projectile . | . . . AOE 69 | . . 69 Terrain Rammed . | . . . Walls Destroyed . | . . . Machines Disabled . | . . . Actions | -11 -10 -10 --------- Run | Yrd Mat Min Total 790 | 69 590 131 Wait 52 | 1 38 13 Move 598 | 50 482 66 Hop . | . . . Pick Up 17 | 4 13 . Fast Attach 9 | 7 2 . Attach 3 | . 1 2 Detach . | . . . Swap 11 | . 2 9 Drop 12 | . 9 3 Fire 87 | 7 42 38 Melee . | . . . Ram . | . . . Kick 1 | . 1 . Crush . | . . . Escape Stasis . | . . . Rewire . | . . . Trap . | . . . Miscellaneous . | . . . Route ------- -11/Scrapyard -10/Materials (discovered 4 exits: [*Mat x2] / [*Min x2]) -10/Mines History --------- Turn | Location | Event 37 | -11/Scrapyard | Discovered new exit (range 15) 99 | -11/Scrapyard | Entered Materials 300 | -10/Materials | Build established: Mutant 419 | -10/Materials | Discovered new exit (range 16) 515 | -10/Materials | Discovered new exit (range 16) 636 | -10/Materials | Discovered new exit (range 16) 738 | -10/Materials | Discovered new exit (range 13) 854 | -10/Materials | Entered Mines 873 | -10/Mines | Core integrity fell below 50% 889 | -10/Mines | Learned Materials garrison access intel 995 | -10/Mines | Core integrity fell below 20% 1020 | -10/Mines | Destroyed 7 combat bots 1071 | -10/Mines | Assembled infested the area 1090 | -10/Mines | Destroyed by as-43822 with Assembled Maul Last Messages --------------- 01079_ Knocked back. 01080_ System corrupted: Mni. Grenade Launcher failed to launch. 01083_ System corrupted: FCS attempts to trigger Shotgun. 01083_ System corrupted: Shotgun misfires. 01083_ Destroyed Asb. Hover Unit. 01083_ as-92553 destroyed. 01083_ as-44436 destroyed. 01083_ as-16645 destroyed. 01088_ Aluminum Leg destroyed. 01089_ Mni. Grenade Launcher destroyed. 01089_ Ion Engine destroyed. 01089_ as-68911 destroyed. 01089_ Destroyed Asb. F-torch. 01089_ as-16284 destroyed. 01089_ as-03040 destroyed. 01089_ Destroyed Asb. F-torch. 01089_ as-62686 destroyed. 01089_ Destroyed Asb. F-torch. Map ----- +----------------------------------------------------+ | ??????????????????????# ## # ##?????? | | ??????????????????????## #?# # ##?????? | | ???????????????????????## ??# # ##?????? | | ????????????????????????# ??# # *#?????? | | ???????????????????????? ??### #?????? | | ????????????????????????##????# ##?????? | | ??????????????????????????????# ####???? | | ??????????????????????????????# ##??? | | ?????????????????????????????## #??? | | ??????????????????????????#### #??? | | ?????????????????????????## ##??? | | ????????????????????????## ##???? | | ???????????????????????## ##????? | | ??????????????????###### #?????? | | ??????????????????# #?????? | | ??????????????????# ##### ### ##?????? | | ????????????????????????## #?####??????? | | ?????????????????????????#! #???????????? | | ?????????????????## ###### !#???????????? | | ?????????? #???????????? | | ?????????? ######## #??#######??? | | ?????????????????????????# #?# ##?? | | ??????????????????????#### ## #?? | | ??????????????????????# #??? | | ??????????????????????# #???? | | ??????????????????????# @ #???? | | ??????????????????????# a%% * #?? | | ?????????????????????# aa % #?? | | ?????????????????????## % #?? | | ??????????????????????# # a #?? | | ??????????????????????###?# #?? | | ??????????????????????????? #?? | | ??????????????????????????? #?? | | ??????????????????????????? ## ##?? | | ????????????????????????????##? #??? | | ???????????????????????????????? %% #??? | | ????????????????????????????????## %##??? | | ?????????????????????????????????? =#???? | | ??????????????????????????????????? #???? | | ????????????????????????????????????????? | | ????????????????????????????????????????? | | ????????????????????????????????????????? | | ????????????????????????????????????????? | | ????????????????????????????????????????? | | ????????????????????????????????????????? | | ????????????????????????????????????????? | | ????????????????????????????????????????? | | ????????????????????????????????????????? | | ????????????????????????????????????????? | | ????????????????????????????????????????? | +----------------------------------------------------+ Best States ------------- Heat Dissipation 25 Energy Generation 10 Energy Capacity 250 Matter Stores 300 Matter Capacity 300 Sight Range 16 Terrain Scan Density 10 Propulsion Shielding 33 Evasion (%) 55 Item Schematics ----------------- None Robot Schematics ------------------ None Fabricated ------------ Nothing Alien Tech Used ----------------- None Achievements -------------- None Challenges ------------ None Game ------ Seed PowerXenonAutogun Manual? 0 Play Time 00:11:54 Cumulative 18.0 hours Start 2024.04.26 @ 11:47:56 End 2024.04.26 @ 11:59:32 Sessions 1 Manual Loads 0 Difficulty Rogue Special Mode None Game No. 13 Rogue 13 Adventurer 0 Explorer 0 Win Type - Total 2 Types 2/0/0/0/0/0/0/0/0 Lore% 25 Gallery% 22 Achievement% 27 Wizard Run 0 Options --------- Layout 1 ASCII 0 Keyboard 0 Movement Vi Keybinds 0 Fullscreen 1 Font 18/SmallcapsGlow Map View 54x44 Zoom Use 0% Tactical HUD 1 Map Filters NONE Filters NONE Steam 0 RUN: d2b95465-5eeb-4410-89a1-0f6ec3538ddb